fUSD/lending_fUSD_20250925
["ID","MTS","AMOUNT","RATE_DAILY","PERIOD"]
[387531820,1758759048334,-762.317822,0.00021505,2]
[387531821,1758759048344,-151.0,0.00021505,2]
[387531822,1758759048353,-151.0,0.00021505,2]
[387531823,1758759048362,-151.0,0.00021505,2]
[387531824,1758759048371,-151.0,0.00021505,2]
[387531825,1758759048380,-151.0,0.00021505,2]
[387531826,1758759048389,-151.0,0.00021505,2]
[387531827,1758759048399,-151.0,0.00021505,2]
[387531828,1758759048408,-151.0,0.00021505,2]
[387531829,1758759048417,-151.0,0.00021505,2]
[387531830,1758759048426,-153.21591,0.00021505,2]
[387531831,1758759048435,-151.0,0.00021505,2]
[387531832,1758759048444,-151.0,0.00021505,2]
[387531833,1758759048454,-151.0,0.00021505,2]
[387531834,1758759048463,-151.0,0.00021505,2]
[387531835,1758759048472,-151.0,0.00021505,2]
[387531836,1758759048482,-151.0,0.00021505,2]
[387531837,1758759048491,-151.0,0.00021505,2]
[387531838,1758759048500,-151.0,0.00021505,2]
[387531839,1758759048510,-151.0,0.00021505,2]
[387531840,1758759048519,-151.0,0.00021505,2]
[387531841,1758759048528,-151.0,0.00021505,2]
[387531842,1758759048538,-151.0,0.00021505,2]
[387531843,1758759048547,-161.638642,0.00021505,2]
[387531844,1758759048557,-314.456582,0.00021505,2]
[387531845,1758759048566,-314.456582,0.00021505,2]
[387531846,1758759048576,-289.900204,0.00021505,2]
[387531847,1758759048586,-314.456582,0.00021505,2]
[387531848,1758759048595,-151.0,0.00021505,2]
[387531849,1758759048604,-151.0,0.00021505,2]
[387531850,1758759048614,-314.456582,0.00021505,2]
[387531851,1758759048625,-151.0,0.00021505,2]
[387531852,1758759048634,-151.0,0.00021505,2]
[387531853,1758759048643,-151.0,0.00021505,2]
[387531854,1758759048654,-151.0,0.00021505,2]
[387531855,1758759048663,-151.0,0.00021505,2]
[387531856,1758759048673,-485.426062,0.00021505,2]
[387531857,1758759048683,-267.930169,0.00021505,2]
[387531858,1758759048692,-485.426062,0.00021505,2]
[387531859,1758759048702,-267.930169,0.00021505,2]
[387531860,1758759048711,-485.426062,0.00021505,2]
[387531861,1758759048721,-267.930169,0.00021505,2]
[387531862,1758759048731,-485.426062,0.00021505,2]
[387531863,1758759048740,-267.930169,0.00021505,2]
[387531864,1758759048750,-441.812885,0.00021505,2]
[387531865,1758759048760,-441.812885,0.00021505,2]
[387531866,1758759048769,-441.812885,0.00021505,2]
[387531867,1758759048779,-441.812885,0.00021505,2]
[387531868,1758759048788,-151.0,0.00021505,2]
[387531869,1758759048798,-151.0,0.00021505,2]
[387531870,1758759048807,-151.0,0.00021505,2]
[387531871,1758759048816,-151.0,0.00021505,2]
[387531872,1758759048826,-151.0,0.00021505,2]
[387531873,1758759048836,-280.17682,0.00021505,2]
[387531874,1758759048846,-2039.412436,0.00021505,2]
[387531875,1758759048855,-153.995957,0.00021505,2]
[387531876,1758759048866,-151.0,0.00021505,2]
[387531877,1758759048875,-2039.412436,0.00021505,2]
[387531878,1758759048886,-151.0,0.00021505,2]
[387531879,1758759048896,-374.8566,0.00021505,2]
[387531880,1758759048906,-2039.412436,0.00021505,2]
[387531881,1758759048915,-374.8566,0.00021505,2]
[387531882,1758759048926,-2039.412436,0.00021505,2]
[387531883,1758759048936,-275.18166,0.00021505,2]
[387531884,1758759048945,-374.8566,0.00021505,2]
[387531885,1758759048955,-275.18166,0.00021505,2]
[387531886,1758759048965,-374.8566,0.00021505,2]
[387531887,1758759048974,-275.18166,0.00021505,2]
[387531888,1758759048984,-275.18166,0.00021505,2]
[387531889,1758759048993,-151.0,0.00021505,2]
[387531890,1758759049003,-151.0,0.00021505,2]
[387531891,1758759049012,-151.0,0.00021505,2]
[387531892,1758759049022,-151.0,0.00021505,2]
[387531893,1758759049035,-192.685986,0.00021505,2]
[387531894,1758759049044,-151.0,0.00021505,2]
[387531895,1758759049054,-151.0,0.00021505,2]
[387531896,1758759049063,-151.0,0.00021505,2]
[387531897,1758759049075,-151.0,0.00021505,2]
[387531898,1758759049084,-151.0,0.00021505,2]
[387531899,1758759049093,-151.0,0.00021505,2]
[387531900,1758759049103,-1320.491877,0.00021505,2]
[387531901,1758759049112,-151.0,0.00021505,2]
[387531902,1758759049122,-1320.491877,0.00021505,2]
[387531903,1758759049131,-1320.491877,0.00021505,2]
[387531904,1758759049141,-1320.491877,0.00021505,2]
[387531905,1758759049150,-217.231032,0.00021505,2]
[387531906,1758759049159,-217.231032,0.00021505,2]
[387531907,1758759049169,-560.172061,0.00021505,2]
[387531908,1758759049179,-217.231032,0.00021505,2]
[387531909,1758759049190,-560.172061,0.00021505,2]
[387531910,1758759049200,-217.231032,0.00021505,2]
[387531911,1758759049210,-560.172061,0.00021505,2]
[387531912,1758759049219,-560.172061,0.00021505,2]
[387531913,1758759049229,-151.0,0.00021505,2]
[387531914,1758759049240,-151.0,0.00021505,2]
[387531915,1758759049249,-151.0,0.00021505,2]
[387531916,1758759049259,-151.0,0.00021505,2]
[387531917,1758759049268,-151.0,0.0002153,2]
[387531918,1758759049277,-311.953263,0.0002153,2]
[387531919,1758759049286,-311.953263,0.0002153,2]
[387531920,1758759049295,-311.953263,0.0002153,2]
[387531921,1758759049305,-311.953263,0.0002153,2]
[387531922,1758759049314,-151.0,0.0002153,2]
[387531923,1758759049323,-151.0,0.0002153,2]
[387531924,1758759049333,-151.0,0.0002153,2]
[387531925,1758759049343,-151.0,0.0002153,2]
[387531926,1758759049353,-151.0,0.0002153,2]
[387531927,1758759049363,-151.0,0.0002153,2]
[387531928,1758759049373,-235.578181,0.0002153,2]
[387531929,1758759049383,-151.0,0.0002153,2]
[387531930,1758759049393,-151.0,0.0002153,2]
[387531931,1758759049402,-235.578181,0.0002153,2]
[387531932,1758759049411,-151.0,0.0002153,2]
[387531933,1758759049421,-151.0,0.0002153,2]
[387531934,1758759049431,-151.0,0.0002153,2]
[387531935,1758759049440,-235.578181,0.0002153,2]
[387531936,1758759049450,-151.0,0.0002153,2]
[387531937,1758759049460,-235.578181,0.0002153,2]
[387531938,1758759049469,-151.0,0.0002153,2]
[387531939,1758759049478,-151.0,0.0002153,2]
[387531940,1758759049487,-151.0,0.0002153,2]
[387531941,1758759049497,-196.41844,0.0002153,2]
[387531942,1758759049507,-151.0,0.0002153,2]
[387531943,1758759049516,-151.0,0.0002153,2]
[387531944,1758759049526,-205.05028193,0.0002153,2]
[387531945,1758759049535,-197.827214,0.0002153,2]
[387531946,1758759049544,-151.0,0.0002153,2]
[387531947,1758759049553,-151.0,0.0002153,2]
[387531948,1758759049563,-151.0,0.0002153,2]
[387531949,1758759049572,-151.0,0.0002153,2]
[387531950,1758759049582,-151.0,0.0002153,2]
[387531951,1758759049591,-151.0,0.0002153,2]
[387531952,1758759049600,-436.39953,0.0002153,2]
[387531953,1758759049609,-436.39953,0.0002153,2]
[387531954,1758759049618,-151.0,0.0002153,2]
[387531955,1758759049627,-436.39953,0.0002153,2]
[387531956,1758759049637,-436.39953,0.0002153,2]
[387531957,1758759049646,-151.0,0.0002153,2]
[387531958,1758759049655,-151.0,0.0002153,2]
[387531959,1758759049665,-151.0,0.0002153,2]
[387531960,1758759049675,-151.0,0.0002153,2]
[387531961,1758759049685,-151.0,0.0002153,2]
[387531962,1758759049694,-151.0,0.0002153,2]
[387531963,1758759049704,-151.0,0.0002153,2]
[387531964,1758759049713,-151.0,0.0002153,2]
[387531965,1758759049723,-151.0,0.0002153,2]
[387531966,1758759049733,-206.001352,0.0002153,2]
[387531967,1758759049743,-151.0,0.0002153,2]
[387531968,1758759049752,-151.0,0.0002153,2]
[387531969,1758759049762,-151.0,0.0002153,2]
[387531970,1758759049771,-206.001352,0.0002153,2]
[387531971,1758759049780,-151.0,0.0002153,2]
[387531972,1758759049789,-151.0,0.0002153,2]
[387531973,1758759049799,-206.001352,0.0002153,2]
[387531974,1758759049808,-151.0,0.0002153,2]
[387531975,1758759049818,-206.001352,0.0002153,2]
[387531976,1758759049827,-230.791317,0.0002153,2]
[387531977,1758759049836,-151.0,0.0002153,2]
[387531978,1758759049845,-151.0,0.00021554,2]
[387531979,1758759049855,-151.0,0.00021554,2]
[387531980,1758759049865,-151.0,0.00021554,2]
[387531981,1758759049874,-151.366262,0.00021554,2]
[387531982,1758759049885,-151.0,0.00021554,2]
[387531983,1758759049894,-151.0,0.00021554,2]
[387531984,1758759049904,-151.0,0.00021554,2]
[387531985,1758759049913,-151.0,0.00021554,2]
[387531986,1758759049923,-433.142181,0.00021554,2]
[387531987,1758759049933,-433.142181,0.00021554,2]
[387531988,1758759049943,-433.142181,0.00021554,2]
[387531989,1758759049953,-433.142181,0.00021554,2]
[387531990,1758759049962,-383.1,0.00021561,2]
[387531991,1758759049972,-5888.0,0.00021586,2]
[387531992,1758759049981,-181.18,0.0002159,2]
[387531993,1758759049991,-151.0,0.000216,2]
[387531994,1758759050001,-151.0,0.000216,2]
[387531995,1758759050010,-151.0,0.000216,2]
[387531996,1758759050019,-151.0,0.000216,2]
[387531997,1758759050030,-151.0,0.000216,2]
[387531998,1758759050041,-1000.0,0.000216,2]
[387531999,1758759050050,-1425.0,0.00021605,2]
[387532000,1758759050059,-189.1,0.00021608,2]
[387532001,1758759050069,-16854.23771631,0.00021613,2]
[387532002,1758759050078,-9473.90833402,0.00021616,2]
[387532003,1758759050087,-848.113747,0.00021617,2]
[387532004,1758759050096,-2036.1666054,0.0002162,2]
[387532005,1758759050105,-12033.59123516,0.00021626,2]
[387532006,1758759050115,-4759.18976882,0.00021629,2]
[387532007,1758759050124,-4759.18976882,0.00021629,2]
[387532008,1758759050133,-18690.07924588,0.0002163,2]
[387532009,1758759050142,-501.65070004,0.0002163,2]
[387532010,1758759050152,-7387.97543432,0.0002163,2]
[387532011,1758759050162,-254482.10099952,0.00021636,2]
[387532012,1758759050172,-26369.46038812,0.00021637,2]
[387532013,1758759050181,-7387.97543432,0.00021639,2]
[387532014,1758759050191,-501.65070004,0.0002164,2]
[387532015,1758759050201,-18690.07924588,0.00021642,2]
[387532016,1758759050211,-1000.0,0.00021643,3]
[387532017,1758759050220,-500.0,0.00021644,2]
[387532018,1758759050230,-500.0,0.00021644,2]
[387532019,1758759050239,-26369.46038812,0.00021651,2]
[387532020,1758759050250,-42568.80219195,0.00021652,2]
[387532021,1758759050259,-254482.10099952,0.00021657,2]
[387532022,1758759050269,-9192.93168547,0.00021657,2]
[387532023,1758759050279,-501.65070004,0.00021662,2]
[387532024,1758759050288,-390.00954957,0.00021665,2]
[387532025,1758759050297,-9192.93168547,0.00021665,2]
[387532026,1758759050306,-390.00954957,0.00021667,2]
[387532027,1758759050315,-195.0,0.00021668,2]
[387532028,1758759050324,-250.0,0.00021668,2]
[387532029,1758759050334,-2000.0,0.00021668,2]
[387532030,1758759050343,-193.0,0.00021668,2]
[387532031,1758759050353,-258.06776669,0.00021668,2]
[387532032,1758759050362,-2890.02889033,0.00021669,2]
[387532033,1758759050371,-26369.46038812,0.0002167,2]
[387532034,1758759050380,-501.65070004,0.00021674,2]
[387532035,1758759050390,-390.00954957,0.00021675,2]
[387532036,1758759050399,-500.0,0.00021678,2]
[387532037,1758759050408,-162.93158306,0.00021678,2]
[387532038,1758759050417,-390.00954957,0.00021679,2]
[387532039,1758759050428,-501.65070004,0.00021681,2]
[387532040,1758759050437,-12033.59123516,0.00021681,2]
[387532041,1758759050447,-2890.02889033,0.00021683,2]
[387532042,1758759050456,-151.0,0.00021689,2]
[387532043,1758759050465,-161.890632,0.00021689,2]
[387532044,1758759050475,-151.0,0.00021689,2]
[387532045,1758759050483,-151.0,0.00021689,2]
[387532046,1758759050492,-199.50407298,0.00021689,2]
[387532047,1758759050501,-151.0,0.00021689,2]
[387532048,1758759050511,-151.0,0.00021689,2]
[387532049,1758759050520,-151.0,0.00021689,2]
[387532050,1758759050529,-18690.07924588,0.00021689,2]
[387532051,1758759050537,-9192.93168547,0.0002169,2]
[387532052,1758759050546,-12033.59123516,0.0002169,2]
[387532053,1758759050556,-1000.0,0.0002169,2]
[387532054,1758759050565,-12033.59123516,0.0002169,2]
[387532055,1758759050574,-2890.02889033,0.0002169,2]
[387532056,1758759050583,-26369.46038812,0.0002169,2]
[387532057,1758759050592,-26369.46038812,0.00021691,2]
[387532058,1758759050601,-567.0,0.00021694,2]
[387532059,1758759050609,-4759.18976882,0.00021698,2]
[387532060,1758759050619,-2400.0,0.000217,7]
[387532061,1758759050628,-240.02483733,0.000217,2]
[387532062,1758759050637,-414.90613419,0.000217,2]
[387532063,1758759050646,-1000.0,0.000217,2]
[387532064,1758759050656,-6679.75966,0.000217,2]
[387532065,1758759050665,-26369.46038812,0.00021701,2]
[387532066,1758759050675,-254482.10099952,0.00021701,2]
[387532067,1758759050684,-2890.02889033,0.00021702,2]
[387532068,1758759050694,-7387.97543432,0.00021702,2]
[387532069,1758759050703,-390.00954957,0.00021703,2]
[387532070,1758759050712,-452.53016443,0.00021707,2]
[387532071,1758759050721,-2890.02889033,0.0002171,2]
[387532072,1758759050731,-254482.10099952,0.0002171,2]
[387532073,1758759050740,-390.00954957,0.00021712,2]
[387532074,1758759050749,-536.0,0.00021712,2]
[387532075,1758759050759,-824.0,0.00021712,2]
[387532076,1758759050768,-500.0,0.00021712,2]
[387532077,1758759050777,-3832.0,0.00021712,2]
[387532078,1758759050786,-500.0,0.00021712,2]
[387532079,1758759050796,-500.0,0.00021712,2]
[387532080,1758759050805,-491.0,0.00021712,2]
[387532081,1758759050815,-998.0,0.00021712,2]
[387532082,1758759050825,-272.49378024,0.00021712,2]
[387532083,1758759050835,-300.0,0.00021712,2]
[387532084,1758759050845,-180.57728319,0.00021712,2]
[387532085,1758759050855,-42568.80219195,0.00021712,2]
[387532086,1758759050865,-26369.46038812,0.00021715,2]
[387532087,1758759050875,-18690.07924588,0.00021715,2]
[387532088,1758759050885,-42568.80219195,0.00021716,2]
[387532089,1758759050895,-9192.93168547,0.00021716,2]
[387532090,1758759050904,-500.0,0.00021718,2]
[387532091,1758759050914,-500.0,0.00021718,2]
[387532092,1758759050923,-500.0,0.00021718,2]
[387532093,1758759050933,-500.0,0.00021718,2]
[387532094,1758759050942,-150.0,0.00021718,2]
[387532095,1758759050952,-227.88628533,0.00021718,2]
[387532096,1758759050962,-300.0,0.00021718,2]
[387532097,1758759050971,-500.0,0.00021718,2]
[387532098,1758759050980,-150.0,0.00021718,2]
[387532099,1758759050991,-150.0,0.00021718,2]
[387532100,1758759051000,-612.10670865,0.00021718,2]
[387532101,1758759051010,-150.0,0.00021718,2]
[387532102,1758759051019,-1100.0,0.00021718,2]
[387532103,1758759051030,-1100.0,0.00021718,2]
[387532104,1758759051041,-500.0,0.00021718,2]
[387532105,1758759051051,-554.25655371,0.00021718,2]
[387532106,1758759051060,-500.0,0.00021718,2]
[387532107,1758759051071,-500.0,0.00021718,2]
[387532108,1758759051081,-1073.0,0.00021718,2]
[387532109,1758759051090,-500.0,0.00021718,2]
[387532110,1758759051100,-895.0,0.00021718,2]
[387532111,1758759051110,-478.54046788,0.00021721,2]
[387532112,1758759051122,-150.0,0.00021721,2]
[387532113,1758759051131,-500.0,0.00021721,2]
[387532114,1758759051141,-150.0,0.00021721,2]
[387532115,1758759051151,-767.0,0.00021721,2]
[387532116,1758759051160,-500.0,0.00021721,2]
[387532117,1758759051170,-500.0,0.00021721,2]
[387532118,1758759051180,-151.05511869,0.00021721,2]
[387532119,1758759051189,-500.0,0.00021721,2]
[387532120,1758759051199,-42568.80219195,0.00021722,2]
[387532121,1758759051208,-9192.93168547,0.00021723,2]
[387532122,1758759051218,-254482.10099952,0.00021726,2]
[387532123,1758759051227,-254482.10099952,0.00021729,2]
[387532124,1758759051237,-9192.93168547,0.0002173,2]
[387532125,1758759051247,-383.1,0.00021732,2]
[387532126,1758759051257,-501.65070004,0.00021732,2]
[387532127,1758759051266,-18690.07924588,0.00021734,2]
[387532128,1758759051275,-2670.18434444,0.00021735,2]
[387532129,1758759051285,-150.0,0.00021736,2]
[387532130,1758759051295,-4759.18976882,0.00021739,2]
[387532131,1758759051305,-42568.80219195,0.00021741,2]
[387532132,1758759051315,-200.0,0.00021742,2]
[387532133,1758759051325,-151.0,0.00021742,2]
[387532134,1758759051334,-287.23156,0.00021742,2]
[387532135,1758759051344,-151.0,0.00021742,2]
[387532136,1758759051354,-151.0,0.00021742,2]
[387532137,1758759051363,-151.0,0.00021742,2]
[387532138,1758759051372,-151.0,0.00021742,2]
[387532139,1758759051382,-184.290661,0.00021742,2]
[387532140,1758759051391,-184.290661,0.00021742,2]
[387532141,1758759051401,-151.0,0.00021742,2]
[387532142,1758759051410,-184.290661,0.00021742,2]
[387532143,1758759051420,-151.0,0.00021742,2]
[387532144,1758759051431,-184.290661,0.00021742,2]
[387532145,1758759051441,-151.0,0.00021742,2]
[387532146,1758759051450,-151.0,0.00021742,2]
[387532147,1758759051459,-218.298186,0.00021742,2]
[387532148,1758759051469,-218.298186,0.00021742,2]
[387532149,1758759051479,-218.298186,0.00021742,2]
[387532150,1758759051490,-218.298186,0.00021742,2]
[387532151,1758759051500,-151.0,0.00021742,2]
[387532152,1758759051510,-151.0,0.00021742,2]
[387532153,1758759051522,-18690.07924588,0.00021743,2]
[387532154,1758759051532,-12033.59123516,0.00021744,2]
[387532155,1758759051542,-7387.97543432,0.00021748,2]
[387532156,1758759051551,-7387.97543432,0.0002175,2]
[387532157,1758759051561,-4759.18976882,0.00021754,2]
[387532158,1758759051570,-501.65070004,0.00021754,2]
[387532159,1758759051580,-7387.97543432,0.00021756,2]
[387532160,1758759051589,-516.71825645,0.00021757,2]
[387532161,1758759051599,-42568.80219195,0.00021758,2]
[387532162,1758759051609,-2890.02889033,0.00021763,2]
[387532163,1758759051619,-42568.80219195,0.00021769,2]
[387532164,1758759051629,-4759.18976882,0.0002177,2]
[387532165,1758759051639,-16854.23771631,0.00021772,2]
[387532166,1758759051649,-540.71,0.00021773,2]
[387532167,1758759051659,-2890.02889033,0.00021774,2]
[387532168,1758759051668,-9473.90833402,0.00021775,2]
[387532169,1758759051679,-170.74,0.00021779,2]
[387532170,1758759051689,-7387.97543432,0.0002178,2]
[387532171,1758759051698,-12033.59123516,0.00021784,2]
[387532172,1758759051708,-567.0,0.00021787,2]
[387532173,1758759051718,-4759.18976882,0.00021787,2]
[387532174,1758759051728,-18690.07924588,0.00021792,2]
[387532175,1758759051739,-12033.59123516,0.00021793,2]
[387532176,1758759051749,-151.0,0.00021797,2]
[387532177,1758759051759,-151.0,0.00021797,2]
[387532178,1758759051769,-151.0,0.00021797,2]
[387532179,1758759051779,-2039.412436,0.00021797,2]
[387532180,1758759051789,-151.0,0.00021797,2]
[387532181,1758759051799,-2039.412436,0.00021797,2]
[387532182,1758759051818,-374.8566,0.00021797,2]
[387532183,1758759051839,-2039.412436,0.00021797,2]
[387532184,1758759051849,-374.8566,0.00021797,2]
[387532185,1758759051859,-2039.412436,0.00021797,2]
[387532186,1758759051869,-275.18166,0.00021797,2]
[387532187,1758759051879,-374.8566,0.00021797,2]
[387532188,1758759051889,-275.18166,0.00021797,2]
[387532189,1758759051899,-374.8566,0.00021797,2]
[387532190,1758759051908,-275.18166,0.00021797,2]
[387532191,1758759051918,-275.18166,0.00021797,2]
[387532192,1758759051928,-151.0,0.00021797,2]
[387532193,1758759051938,-151.0,0.00021797,2]
[387532194,1758759051952,-151.0,0.00021797,2]
[387532195,1758759051962,-151.0,0.00021797,2]
[387532196,1758759051972,-151.0,0.00021797,2]
[387532197,1758759051982,-151.0,0.00021797,2]
[387532198,1758759051993,-151.0,0.00021797,2]
[387532199,1758759052003,-151.0,0.00021797,2]
[387532200,1758759052014,-202.780315,0.00021797,2]
[387532201,1758759052024,-1320.491877,0.00021797,2]
[387532202,1758759052038,-151.0,0.00021797,2]
[387532203,1758759052049,-1320.491877,0.00021797,2]
[387532204,1758759052059,-1320.491877,0.00021797,2]
[387532205,1758759052068,-1320.491877,0.00021797,2]
[387532206,1758759052078,-217.231032,0.00021797,2]
[387532207,1758759052088,-217.231032,0.00021797,2]
[387532208,1758759052098,-560.172061,0.00021797,2]
[387532209,1758759052107,-217.231032,0.00021797,2]
[387532210,1758759052117,-560.172061,0.00021797,2]
[387532211,1758759052126,-217.231032,0.00021797,2]
[387532212,1758759052137,-560.172061,0.00021797,2]
[387532213,1758759052147,-560.172061,0.00021797,2]
[387532214,1758759052158,-151.0,0.00021797,2]
[387532215,1758759052167,-254482.10099952,0.00021797,2]
[387532216,1758759052178,-9192.93168547,0.00021798,2]
[387532217,1758759052188,-762.317822,0.00021798,2]
[387532218,1758759052198,-762.317822,0.00021798,2]
[387532219,1758759052208,-762.317822,0.00021798,2]
[387532220,1758759052219,-762.317822,0.00021798,2]
[387532221,1758759052228,-151.0,0.00021798,2]
[387532222,1758759052238,-151.0,0.00021798,2]
[387532223,1758759052248,-151.0,0.00021798,2]
[387532224,1758759052258,-151.0,0.00021798,2]
[387532225,1758759052268,-159.896764,0.00021798,2]
[387532226,1758759052277,-151.0,0.00021798,2]
[387532227,1758759052287,-151.0,0.00021798,2]
[387532228,1758759052296,-151.0,0.00021798,2]
[387532229,1758759052306,-151.0,0.00021798,2]
[387532230,1758759052315,-2051.76902,0.00021798,2]
[387532231,1758759052325,-151.0,0.00021798,2]
[387532232,1758759052335,-151.0,0.00021798,2]
[387532233,1758759052344,-151.0,0.00021798,2]
[387532234,1758759052354,-151.0,0.00021798,2]
[387532235,1758759052364,-151.0,0.00021798,2]
[387532236,1758759052374,-151.0,0.00021798,2]
[387532237,1758759052384,-151.0,0.00021798,2]
[387532238,1758759052393,-151.0,0.00021798,2]
[387532239,1758759052403,-151.0,0.00021798,2]
[387532240,1758759052413,-151.0,0.00021798,2]
[387532241,1758759052424,-151.0,0.00021798,2]
[387532242,1758759052434,-314.456582,0.00021798,2]
[387532243,1758759052443,-314.456582,0.00021798,2]
[387532244,1758759052453,-314.456582,0.00021798,2]
[387532245,1758759052462,-151.0,0.00021798,2]
[387532246,1758759052472,-151.0,0.00021798,2]
[387532247,1758759052482,-314.456582,0.00021798,2]
[387532248,1758759052492,-151.0,0.00021798,2]
[387532249,1758759052502,-298.476335,0.00021798,2]
[387532250,1758759052511,-151.0,0.00021798,2]
[387532251,1758759052521,-276.665395,0.00021798,2]
[387532252,1758759052531,-151.0,0.00021798,2]
[387532253,1758759052541,-485.426062,0.00021798,2]
[387532254,1758759052551,-267.930169,0.00021798,2]
[387532255,1758759052560,-485.426062,0.00021798,2]
[387532256,1758759052570,-267.930169,0.00021798,2]
[387532257,1758759052580,-485.426062,0.00021798,2]
[387532258,1758759052590,-267.930169,0.00021798,2]
[387532259,1758759052599,-485.426062,0.00021798,2]
[387532260,1758759052609,-267.930169,0.00021798,2]
[387532261,1758759052619,-441.812885,0.00021798,2]
[387532262,1758759052630,-441.812885,0.00021798,2]
[387532263,1758759052640,-441.812885,0.00021798,2]
[387532264,1758759052650,-441.812885,0.00021798,2]
[387532265,1758759052660,-151.0,0.00021798,2]
[387532266,1758759052670,-151.0,0.00021798,2]
[387532267,1758759052680,-390.00954957,0.00021799,2]
[387532268,1758759052690,-3000.0,0.000218,7]
[387532269,1758759052700,-1000.0,0.000218,2]
[387532270,1758759052710,-151.0,0.000218,2]
[387532271,1758759052722,-151.0,0.000218,2]
[387532272,1758759052732,-151.0,0.000218,2]
[387532273,1758759052742,-567.0,0.000218,2]
[387532274,1758759052752,-567.0,0.00021805,2]
[387532275,1758759052762,-1000.0,0.00021808,3]
[387532276,1758759052772,-567.0,0.00021817,2]
[387532277,1758759052783,-154.672848,0.00021817,2]
[387532278,1758759052792,-151.0,0.00021817,2]
[387532279,1758759052803,-154.672848,0.00021817,2]
[387532280,1758759052812,-151.0,0.00021817,2]
[387532281,1758759052823,-154.672848,0.00021817,2]
[387532282,1758759052833,-154.672848,0.00021817,2]
[387532283,1758759052843,-152.834666,0.00021817,2]
[387532284,1758759052853,-152.834666,0.00021817,2]
[387532285,1758759052864,-152.834666,0.00021817,2]
[387532286,1758759052874,-152.834666,0.00021817,2]
[387532287,1758759052884,-363.379998,0.00021817,2]
[387532288,1758759053190,-363.379998,0.00021817,2]
[387532289,1758759053200,-363.379998,0.00021817,2]
[387532290,1758759053211,-363.379998,0.00021817,2]
[387532291,1758759053221,-151.0,0.00021817,2]
[387532292,1758759053230,-164.794399,0.00021817,2]
[387532293,1758759053239,-278.582462,0.00021817,2]
[387532294,1758759053249,-417.47317156,0.00021817,2]
[387532295,1758759053258,-278.582462,0.00021817,2]
[387532296,1758759053268,-278.582462,0.00021817,2]
[387532297,1758759053279,-151.0,0.00021817,2]
[387532298,1758759053288,-278.582462,0.00021817,2]
[387532299,1758759053299,-151.0,0.00021817,2]
[387532300,1758759053310,-151.0,0.00021817,2]
[387532301,1758759053321,-12524.53,0.00021818,4]
[387532302,1758759053333,-1000.0,0.00021821,2]
[387532303,1758759053344,-517.19946058,0.00021821,2]
[387532304,1758759053355,-1000.0,0.00021821,2]
[387532305,1758759053364,-567.0,0.00021851,2]
[387532306,1758759053374,-1014.67951157,0.00021868,2]
[387532307,1758759053383,-1556.63893024,0.00021868,2]
[387532308,1758759053393,-502.27046038,0.00021868,2]
[387532309,1758759053402,-1500.0,0.00021868,2]
[387532310,1758759053412,-1500.0,0.00021868,2]
[387532311,1758759053422,-1500.0,0.00021868,2]
[387532312,1758759053432,-1500.0,0.00021868,2]
[387532313,1758759053441,-230.19900156,0.00021868,2]
[387532314,1758759053451,-150.0,0.00021883,2]
[387532315,1758759053460,-150.0,0.00021883,2]
[387532316,1758759053470,-151.0,0.00021888,2]
[387532317,1758759053479,-151.0,0.00021888,2]
[387532318,1758759053489,-151.0,0.00021888,2]
[387532319,1758759053499,-151.0,0.00021888,2]